fUSD/lending_fUSD_20241121
["ID","MTS","AMOUNT","RATE_DAILY","PERIOD"]
[342856229,1732183880009,-764.59,0.00041369,18]
[342856230,1732183880018,-500.0,0.00041369,18]
[342856231,1732183880028,-2757.84,0.00041369,18]
[342856232,1732183880037,-500.0,0.00041369,18]
[342856233,1732183880047,-500.0,0.00041369,18]
[342856234,1732183880057,-1370.3,0.00041369,18]
[342856235,1732183880067,-500.0,0.00041369,18]
[342856236,1732183880077,-1844.45,0.00041369,18]
[342856237,1732183880090,-782.15,0.00041369,18]
[342856238,1732183880099,-500.0,0.00041369,18]
[342856239,1732183880109,-1254.36,0.00041369,18]
[342856240,1732183880119,-500.0,0.00041369,18]
[342856241,1732183880128,-500.0,0.00041369,18]
[342856242,1732183880138,-2000.0,0.00041369,30]
[342856243,1732183880147,-721.42,0.00041369,18]
[342856244,1732183880157,-1994.66,0.00041369,18]
[342856245,1732183880168,-500.0,0.00041369,18]
[342856246,1732183880178,-500.0,0.00041369,18]
[342856247,1732183880187,-753.09,0.00041369,18]
[342856248,1732183880198,-500.0,0.00041369,18]
[342856249,1732183880208,-549.97,0.00041369,18]
[342856250,1732183880218,-2822.89,0.00041369,18]
[342856251,1732183880228,-1199.48,0.00041369,18]
[342856252,1732183880239,-1675.29,0.00041369,18]
[342856253,1732183880248,-500.0,0.00041369,18]
[342856254,1732183880257,-1861.07,0.00041369,120]
[342856255,1732183880266,-2359.4,0.00041369,18]
[342856256,1732183880276,-4091.97,0.00041369,18]
[342856257,1732183880285,-786.7,0.00041369,18]
[342856258,1732183880295,-1154.81,0.00041369,18]
[342856259,1732183880304,-2311.43,0.00041369,18]
[342856260,1732183880313,-932.22,0.00041369,18]
[342856261,1732183880323,-1042.7,0.00041369,18]
[342856262,1732183880332,-500.0,0.00041369,18]
[342856263,1732183880341,-500.0,0.00041369,18]
[342856264,1732183880351,-3284.84,0.00041369,18]
[342856265,1732183880360,-500.0,0.00041369,18]
[342856266,1732183880370,-500.0,0.00041369,18]
[342856267,1732183880379,-500.0,0.00041369,18]
[342856268,1732183880389,-959.13,0.00041369,18]
[342856269,1732183880399,-500.0,0.00041369,18]
[342856270,1732183880409,-500.0,0.00041369,18]
[342856271,1732183880418,-1921.19,0.00041369,18]
[342856272,1732183880428,-1222.68,0.00041369,18]
[342856273,1732183880440,-153.777618,0.00041369,14]
[342856274,1732183880453,-1699.06,0.00041369,18]
[342856275,1732183880462,-153.777618,0.00041369,14]
[342856276,1732183880589,-1170.05,0.00041369,18]
[342856277,1732183880602,-500.0,0.00041369,18]
[342856278,1732183880611,-500.0,0.00041369,18]
[342856279,1732183880621,-153.777618,0.00041369,14]
[342856280,1732183880631,-553.23,0.00041369,18]
[342856281,1732183880641,-153.777618,0.00041369,14]
[342856282,1732183880650,-1222.84,0.00041369,18]
[342856283,1732183880659,-625.1969781,0.00041369,18]
[342856284,1732183880669,-6234.42,0.00041369,18]
[342856285,1732183880680,-151.0,0.00041369,14]
[342856286,1732183880692,-500.0,0.00041369,18]
[342856287,1732183880701,-151.0,0.00041369,14]
[342856288,1732183880711,-151.0,0.00041369,14]
[342856289,1732183880722,-151.0,0.00041369,14]
[342856290,1732183880731,-500.0,0.00041369,18]
[342856291,1732183880744,-153.777618,0.00041369,14]
[342856292,1732183880754,-500.0,0.00041369,18]
[342856293,1732183880763,-897.67,0.00041369,18]
[342856294,1732183880777,-153.777618,0.00041369,14]
[342856295,1732183880788,-500.0,0.00041369,18]
[342856296,1732183880797,-1242.44,0.00041369,18]
[342856297,1732183880807,-153.777618,0.00041369,14]
[342856298,1732183880816,-153.777618,0.00041369,14]
[342856299,1732183880826,-1783.73,0.00041369,18]
[342856300,1732183880835,-500.0,0.00041369,18]
[342856301,1732183880845,-1648.28,0.00041369,18]
[342856302,1732183880855,-500.0,0.00041369,18]
[342856303,1732183880864,-500.0,0.00041369,18]
[342856304,1732183880873,-500.0,0.00041369,18]
[342856305,1732183880883,-632.08,0.00041369,18]
[342856306,1732183880893,-992.42,0.00041369,18]
[342856307,1732183880902,-1659.52,0.00041369,18]
[342856308,1732183880911,-1737.44,0.00041369,18]
[342856309,1732183880921,-500.0,0.00041369,18]
[342856310,1732183880930,-2565.1,0.00041369,18]
[342856311,1732183880939,-500.0,0.00041369,18]
[342856312,1732183880950,-500.0,0.00041369,18]
[342856313,1732183880959,-500.0,0.00041369,18]
[342856314,1732183880968,-500.0,0.00041369,18]
[342856315,1732183880979,-1287.49,0.00041369,18]
[342856316,1732183880989,-500.0,0.00041369,18]
[342856317,1732183880999,-739.89,0.00041369,18]
[342856318,1732183881009,-4589.02,0.00041369,18]
[342856319,1732183881018,-5288.31,0.00041369,18]
[342856320,1732183881027,-2148.48,0.00041369,18]
[342856321,1732183881037,-2264.23,0.00041369,18]
[342856322,1732183881046,-2048.94,0.00041369,18]
[342856323,1732183881055,-500.0,0.00041369,18]
[342856324,1732183881064,-500.0,0.00041369,18]
[342856325,1732183881075,-500.0,0.00041369,18]
[342856326,1732183881085,-4226.5,0.00041369,18]
[342856327,1732183881099,-1803.45,0.00041369,18]
[342856328,1732183881107,-799.38,0.00041369,18]
[342856329,1732183881116,-948.25,0.00041369,18]
[342856330,1732183881126,-1317.77,0.00041369,18]
[342856331,1732183881138,-500.0,0.00041369,18]
[342856332,1732183881147,-500.0,0.00041369,18]
[342856333,1732183881157,-834.48,0.00041369,18]
[342856334,1732183881168,-2127.63,0.00041369,18]
[342856335,1732183881178,-1567.59,0.00041369,18]
[342856336,1732183881187,-500.0,0.00041369,18]
[342856337,1732183881198,-500.0,0.00041369,18]
[342856338,1732183881207,-1042.89,0.00041369,18]
[342856339,1732183881217,-612.50514939,0.00041369,18]
[342856340,1732183881226,-500.0,0.00041369,18]
[342856341,1732183881235,-582.56,0.00041369,18]
[342856342,1732183881245,-500.0,0.00041369,18]
[342856343,1732183881255,-1444.72,0.00041369,18]
[342856344,1732183881265,-6701.81,0.00041369,18]
[342856345,1732183881274,-1314.85,0.00041369,18]
[342856346,1732183881284,-500.0,0.00041369,18]
[342856347,1732183881294,-1886.47,0.00041369,18]
[342856348,1732183881304,-2120.02,0.00041369,18]
[342856349,1732183881313,-1291.91,0.00041369,18]
[342856350,1732183881322,-1967.17,0.00041369,18]
[342856351,1732183881331,-500.0,0.00041369,18]
[342856352,1732183881341,-500.0,0.00041369,18]
[342856353,1732183881350,-500.0,0.00041369,18]
[342856354,1732183881360,-4029.65,0.00041369,18]
[342856355,1732183881369,-1455.7,0.00041369,18]
[342856356,1732183881378,-1921.406537,0.00041369,14]
[342856357,1732183881388,-508.35,0.00041369,18]
[342856358,1732183881397,-500.0,0.00041369,18]
[342856359,1732183881406,-1140.23324364,0.00041369,14]
[342856360,1732183882103,-781.17329336,0.00041369,14]
[342856361,1732183882112,-1921.406537,0.00041369,14]
[342856362,1732183882122,-58.14381458,0.00041369,14]
[342856363,1732183883045,-1346.89162536,0.00040353,15]
[342856364,1732183883095,-7214.5,0.00040353,15]
[342856365,1732183883116,-2431.9252391,0.00040353,15]
[342856366,1732183883207,-1637.24738842,0.00040353,15]
[342856367,1732183883219,-773.30623649,0.00040353,15]
[342856368,1732183883228,-150.0,0.00040803,2]
[342856369,1732183883238,-150.0,0.00040814,2]
[342856370,1732183883247,-150.0,0.00040815,2]
[342856371,1732183883257,-150.0,0.00040823,2]
[342856372,1732183883266,-43.17961998,0.00040833,2]
[342856373,1732183883277,-106.82038002,0.00040833,2]
[342856374,1732183883286,-150.0,0.00040837,2]
[342856375,1732183883296,-150.0,0.00040844,2]
[342856376,1732183883305,-150.0,0.00040866,2]
[342856377,1732183883314,-150.0,0.0004087,2]
[342856378,1732183883324,-150.0,0.00040885,2]
[342856379,1732183883333,-150.0,0.00040887,2]
[342856380,1732183883343,-35.16296021,0.00040889,2]
[342856381,1732183886886,155.7,0.00031949,2]
[342856382,1732183897716,163.887,0.00027771,2]
[342856384,1732183935659,735.75576461,0.000305,30]
[342856385,1732183937996,591.22925,0.00028945,2]
[342856386,1732184237095,2004.0,0.000235,90]
[342856389,1732184443838,150.0,0.00012001,2]
[342856390,1732184719684,150.0,9e-05,2]
[342856391,1732184719715,44.73572442,9e-05,2]
[342856392,1732184737117,-155.58,0.00015342,2]
[342856393,1732184737139,-32.4276771,0.00024932,2]
[342856394,1732184738194,-467.5723229,0.00024932,2]
[342856395,1732184738231,-2149.0,0.00024932,2]
[342856396,1732184738265,-155.58,0.00026401,2]
[342856397,1732184738291,-800.0,0.00026986,120]
[342856398,1732184738320,-286.802,0.00027771,2]
[342856399,1732184738346,-167.13,0.00029595,2]
[342856400,1732184738384,-151.0,0.0003,120]
[342856401,1732184738429,-1631.50307063,0.000305,30]
[342856402,1732184738457,-169.15,0.00031407,2]
[342856403,1732184738486,-181.62685726,0.00036335,2]
[342856404,1732184753369,150.0,9.336e-05,2]
[342856405,1732184753390,150.0,9.336e-05,2]
[342856406,1732184753412,150.0,9.336e-05,2]
[342856407,1732184753435,150.0,9.336e-05,2]
[342856408,1732184753458,150.0,9.336e-05,2]
[342856409,1732184753479,150.0,9.336e-05,2]
[342856410,1732184753502,150.0,9.336e-05,2]
[342856411,1732184753528,150.0,9.336e-05,2]
[342856412,1732184753550,150.0,9.336e-05,2]
[342856413,1732184753576,5755.26427558,9.336e-05,2]
[342856414,1732184753606,10467.55642529,9.336e-05,2]
[342856415,1732184828122,-150.0,0.00016862,2]
[342856416,1732184828144,-165.14305454,0.00034779,2]
[342856417,1732184828168,-400.0,0.00034878,2]
[342856418,1732184828191,-200.0,0.00034878,30]
[342856419,1732184828225,-967.22584274,0.00036335,2]
[342856420,1732184828251,-286.802,0.00036374,2]
[342856421,1732184828275,-789.47492228,0.00036619,2]
[342856422,1732184840104,-477.27507772,0.00036619,2]
[342856423,1732184840128,-169.15,0.00036641,2]
[342856424,1732184840152,-12457.98989818,0.00036659,2]
[342856426,1732184845148,-693.48833648,0.00034605,2]
[342856427,1732184855158,-2085.27752552,0.00034605,2]
[342856428,1732184855180,-1278.64,0.00034987,2]
[342856429,1732184855202,-1255.30303843,0.00036659,2]
[342856435,1732184958099,-169.15,0.00029522,2]
[342856436,1732184958120,-625.78484683,0.0003,30]
[342856437,1732184958143,-400.0,0.00031999,2]
[342856438,1732184958164,-200.0,0.00031999,30]
[342856439,1732184958185,-6113.02125686,0.00032,90]
[342856443,1732184972109,-250.0,0.00031,2]
[342856444,1732184972131,-16430.47318,0.00032,90]
[342856445,1732184973093,-19028.06853447,0.00032,90]
[342856447,1732184977690,155.28,0.00015342,2]
[342856462,1732185031714,-163.88675,0.00028533,2]
[342856463,1732185031724,-331.86,0.0003199,2]
[342856464,1732185031733,-400.0,0.00031999,2]
[342856465,1732185031743,-148.98096,0.00031999,3]
[342856466,1732185034053,-237.01904,0.00031999,3]
[342856467,1732185034064,-200.0,0.00031999,30]
[342856468,1732185034074,-18708.15006475,0.00032,90]
[342856470,1732185034150,-1974.8225,0.00032,90]
[342856549,1732185037501,-2671.60544762,0.00032,90]
[342856550,1732185037517,-7829.461751,0.00032,90]
[342856551,1732185037530,-19070.50707277,0.00032,90]
[342856552,1732185037546,-1246.0,0.00032,90]
[342856553,1732185037558,-573.84006644,0.00032,90]
[342856554,1732185037567,-300.0,0.00033,2]
[342856555,1732185037576,-560.0,0.00034417,2]
[342856556,1732185037585,-331.86,0.00034769,2]
[342856557,1732185037595,-331.86,0.00034769,2]
[342856558,1732185037604,-600.0,0.00034778,2]
[342856559,1732185037614,-3344.79420031,0.00034779,15]
[342856560,1732185037645,-4413.65733624,0.00034779,15]
[342856561,1732185037656,-2738.2449362,0.00034779,15]
[342856562,1732185037669,-266.36349559,0.00034779,15]
[342856563,1732185037681,-457.39198909,0.00034779,15]
[342856564,1732185037696,-7145.70607608,0.00034779,15]
[342856565,1732185037725,-269.49698536,0.00034779,15]
[342856566,1732185037740,-738.83000004,0.00034779,15]
[342856567,1732185037755,-1963.98816875,0.00034779,15]
[342856568,1732185037770,-5971.39090712,0.00034779,15]
[342856587,1732185039476,-721.06004336,0.00034779,15]
[342856589,1732185039490,-2943.02318066,0.00034779,15]
[342856594,1732185039522,-200.0,0.00034845,2]
[342856595,1732185039533,-331.86,0.00034869,2]
[342856597,1732185039544,-331.86,0.00034869,2]
[342856599,1732185039557,-331.86,0.00034869,2]
[342856602,1732185039569,-331.86,0.00034869,2]
[342856604,1732185039582,-331.86,0.00034869,2]
[342856606,1732185039594,-331.86,0.00034869,2]
[342856609,1732185039607,-331.86,0.00034869,2]
[342856611,1732185039619,-475.3,0.00034869,3]
[342856613,1732185039632,-237.65,0.00034869,3]
[342856615,1732185039644,-396.84886059,0.00034869,3]
[342856619,1732185039666,-316.14113941,0.00034869,3]
[342856621,1732185039678,-196.0,0.00034879,30]
[342856623,1732185039690,-225.85965373,0.00034879,10]
[342856625,1732185039703,-4029.77338091,0.00034879,2]
[342856628,1732185039715,-1493.73701834,0.00034879,2]
[342856630,1732185039727,-225.84099379,0.00034879,2]
[342856631,1732185039740,-3617.59341228,0.00034879,120]
[342856632,1732185039756,-4487.86932066,0.00034879,120]
[342856633,1732185039768,-2702.18366154,0.00034879,2]
[342856634,1732185039793,-1225.69175594,0.00034879,2]
[342856639,1732185039831,-2750.97029537,0.00034879,2]
[342856708,1732185040994,-1079.2913705,0.00034879,2]
[342856731,1732185043162,-319.55366678,0.00034779,2]
[342856732,1732185043174,-666.51,0.00034869,10]
[342856733,1732185043184,-1338.10181776,0.00034879,2]
[342856734,1732185043193,-271212.46677384,0.00034879,4]
[342856735,1732185043204,-1063.14,0.00034879,4]
[342856736,1732185043216,-5879.87885681,0.00034879,4]
[342856737,1732185043227,-4704.000003,0.00034879,4]
[342856738,1732185043242,-13353.19999999,0.00034879,4]
[342856739,1732185043261,-4480.69276066,0.00034879,4]
[342856740,1732185043285,-5266.40464024,0.00034879,4]
[342856741,1732185043301,-1102.71095321,0.00034879,4]
[342856742,1732185043359,-20.88974197,0.00034879,4]
[342856743,1732185043398,-1664.82863637,0.00034879,4]
[342856744,1732185043410,-2908.00739702,0.00034879,4]
[342856745,1732185043431,-3517.96742104,0.00034879,4]
[342856749,1732185045478,-435.700523,0.00031839,2]
[342856750,1732185045488,-3705.59766951,0.00034879,4]
[342856751,1732185045499,-3794.0001,0.00034879,4]
[342856752,1732185045591,-4500.0,0.00034879,4]
[342856753,1732185045686,-486.743151,0.00034879,4]
[342856754,1732185045755,-22406.97793318,0.00034879,4]
[342856757,1732185948136,-158.48,0.00015342,2]
[342856758,1732185948157,-2519.38135709,0.00016662,2]
[342856759,1732185948181,-150.0171998,0.00016762,2]
[342856760,1732185948204,-150.0,0.00016862,2]
[342856761,1732185948226,-58.5323338,0.00024932,2]
[342856762,1732186042117,-150.0,0.00016877,2]
[342856763,1732186042139,-441.4676662,0.00024932,2]
[342856764,1732186042161,-3000.0,0.00024932,2]
[342856765,1732186042182,-154.66,0.00026954,2]
[342856766,1732186042203,-450.47359792,0.00029781,2]
[342856768,1732186044092,-754.56701708,0.00029781,2]
[342856769,1732186044113,-2389.60995044,0.00029932,2]
[342856770,1732186045688,-610.39004956,0.00029932,2]
[342856771,1732186045709,-150.0,0.00030521,2]
[342856772,1732186045732,-158.48,0.00030548,2]
[342856773,1732186045754,-1344.27,0.00031528,2]
[342856774,1732186045775,-1095.2070431,0.000316,2]
[342856775,1732186045795,-7470.0,0.000317,5]
[342856776,1732186045816,-1095.20704308,0.00032673,2]
[342856777,1732186045837,-212.33294501,0.00032673,2]
[342856778,1732186050142,-321.47705499,0.00032673,2]
[342856779,1732186050163,-97.366915,0.00032673,10]
[342856785,1732186167256,-89.873085,0.00032673,10]
[342856786,1732186167275,-61.33909151,0.00032673,11]
[342856836,1732186232717,-1679.58757138,0.00032573,2]
[342856837,1732186232727,-1679.58757138,0.00032625,2]
[342856838,1732186232736,-1111.56188274,0.00032673,11]
[342856839,1732186232748,-1019.51594575,0.00032673,11]
[342856840,1732186232757,-150.0,0.00032673,2]
[342856841,1732186232766,-150.0,0.00032673,2]
[342856842,1732186232775,-150.0,0.00032673,2]
[342856843,1732186232785,-150.0,0.00032673,2]
[342856844,1732186232798,-150.0,0.00032673,2]
[342856845,1732186232807,-150.0,0.00032673,2]
[342856846,1732186232816,-244.87551712,0.00032673,2]
[342856847,1732186232826,-1679.58757138,0.00032677,2]
[342856848,1732186232835,-1699.78,0.00032777,2]
[342856849,1732186232844,-1621.72,0.00032829,2]
[342856850,1732186232853,-4360.32184007,0.00032829,10]
[342856851,1732186232881,-11899.31815993,0.00032829,10]
[342856852,1732186232891,-150.24,0.00032877,2]
[342856853,1732186232900,-3191.14,0.00033006,2]
[342856854,1732186232909,-3987.76,0.00033011,2]
[342856855,1732186232918,-250.0,0.00033159,2]
[342856856,1732186232928,-366.86,0.00033164,120]
[342856857,1732186232937,-250.0,0.00033171,120]
[342856858,1732186232947,-1000.0,0.00033214,2]
[342856859,1732186232956,-239.99,0.00033236,2]
[342856860,1732186232965,-150.0,0.00033398,2]
[342856861,1732186232974,-23900.0,0.00033399,2]
[342856862,1732186232983,-176.93,0.00033426,2]
[342856863,1732186232993,-250.0,0.00033426,2]
[342856864,1732186233002,-913.83,0.00033426,2]
[342856865,1732186233011,-200.0,0.00033442,2]
[342856866,1732186233021,-3445.75,0.00033591,2]
[342856867,1732186233030,-154.66,0.00033693,2]
[342856868,1732186233040,-165.13,0.00033742,2]
[342856869,1732186233050,-200.0,0.00033749,2]
[342856870,1732186233060,-1344.27,0.00033792,2]
[342856871,1732186233070,-159.66,0.00033796,120]
[342856872,1732186233079,-4044.56,0.00033823,63]
[342856873,1732186233089,-1490.53371257,0.00033835,2]
[342856874,1732186233099,-2751.0,0.00033845,120]
[342856875,1732186233108,-200.0,0.00034071,2]
[342856876,1732186233118,-150.0,0.00034548,10]
[342856877,1732186233127,-1788.43,0.00034686,2]
[342856878,1732186233137,-400.0,0.000347,12]
[342856879,1732186233147,-300.0,0.000347,12]
[342856880,1732186233157,-9447.02682552,0.000347,15]
[342856881,1732186233167,-228.53,0.00034703,2]
[342856882,1732186233178,-177.295,0.00034778,40]
[342856883,1732186233188,-1863.583,0.00034778,40]
[342856884,1732186233198,-237.65,0.00034785,3]
[342856885,1732186233208,-63821.12106508,0.00034795,15]
[342856886,1732186233218,-319.55366678,0.00034795,2]
[342856887,1732186233228,-30000.0,0.000348,30]
[342856888,1732186233238,-800.0,0.000348,12]
[342856889,1732186233247,-700.0,0.000348,12]
[342856890,1732186233258,-500.0,0.00034873,2]
[342856891,1732186233268,-1000.0,0.00034878,2]
[342856892,1732186233278,-2169.50411109,0.00034878,120]
[342856893,1732186233287,-500.0,0.00034894,7]
[342856894,1732186233297,-482.61130696,0.00034894,7]
[342856895,1732186233306,-584031.68360246,0.00034895,4]
[342856896,1732186233334,-925.1775,0.00034895,4]
[342856897,1732186233346,-33179.0328484,0.00034895,4]
[342856898,1732186233374,-901.87074403,0.00034895,4]
[342856899,1732186233496,-424.03213301,0.00034895,4]
[342856900,1732186233509,-5200.9341176,0.00034895,4]
[342856902,1732186237670,-21607.69044126,0.00034895,4]
[342856903,1732186237684,-1231.62494226,0.00034895,4]
[342856904,1732186237835,-931159.59627126,0.00034895,4]
[342856905,1732186237845,-1936.0,0.00034895,2]
[342856906,1732186237854,-1357.96839956,0.00034895,120]
[342856907,1732186237863,-337.17317156,0.00034895,120]
[342856908,1732186237873,-1200.0,0.000349,12]
[342856909,1732186237884,-1100.0,0.000349,12]
[342856910,1732186237894,-250.0,0.0003498,2]
[342856911,1732186237906,-350.0,0.00035,2]
[342856912,1732186237916,-1000.0,0.00035421,2]
[342856913,1732186237926,-9447.02682547,0.00035582,15]
[342856914,1732186237936,-1500.0,0.00035616,120]
[342856915,1732186237945,-63821.12106504,0.00035667,15]
[342856916,1732186237955,-150.0,0.0003594,2]
[342856917,1732186237964,-200.0,0.00036024,2]
[342856918,1732186237974,-1344.27,0.00036056,2]
[342856919,1732186237984,-323.27,0.00036067,2]
[342856920,1732186237994,-323.27,0.00036077,2]
[342856921,1732186238004,-323.27,0.00036086,2]
[342856922,1732186238013,-323.27,0.00036096,2]
[342856923,1732186238024,-323.27,0.00036105,2]
[342856924,1732186238033,-280.0,0.00036111,30]
[342856925,1732186238043,-323.27,0.00036115,2]
[342856926,1732186238053,-323.27,0.00036124,2]
[342856927,1732186238063,-323.27,0.00036134,2]
[342856928,1732186238072,-323.27,0.00036143,2]
[342856929,1732186238082,-323.27,0.00036153,2]
[342856930,1732186238092,-323.27,0.00036162,2]
[342856931,1732186238103,-323.27,0.00036172,2]
[342856932,1732186238114,-323.27,0.00036181,2]
[342856933,1732186238124,-323.27,0.00036191,2]
[342856934,1732186238134,-323.27,0.000362,2]
[342856935,1732186238144,-323.27,0.00036209,2]
[342856936,1732186238154,-323.27,0.00036219,2]
[342856937,1732186238164,-323.27,0.00036228,2]
[342856938,1732186238173,-323.27,0.00036238,2]
[342856939,1732186238184,-323.27,0.00036247,2]
[342856940,1732186238194,-9447.02682547,0.00036464,15]
[342856941,1732186238203,-63821.12106504,0.00036538,15]
[342856942,1732186238213,-504.74,0.00036639,120]
[342856943,1732186238222,-200.0,0.00036659,2]
[342856944,1732186238231,-200.0,0.00036659,2]
[342856945,1732186238240,-2000.0,0.00036659,2]
[342856946,1732186238252,-200.0,0.00036659,2]
[342856947,1732186238263,-164.67,0.00036889,2]
[342856948,1732186238274,-312.86,0.00036953,120]
[342856950,1732186238284,-163.88675,0.00036974,2]
[342856951,1732186238294,-400.0,0.00037,2]
[342856952,1732186238303,-200.0,0.00037026,2]
[342856953,1732186238315,-200.0,0.00037026,2]
[342856954,1732186238325,-200.0,0.00037026,2]
[342856955,1732186238334,-591.22925,0.00037299,2]
[342856956,1732186238343,-1000.0,0.000373,15]
[342856957,1732186238353,-599.17,0.00037311,2]
[342856958,1732186238362,-599.17,0.00037321,2]
[342856959,1732186238372,-599.17,0.00037331,2]
[342856960,1732186238382,-599.17,0.00037341,2]
[342856961,1732186238392,-1032.70068608,0.00037346,15]
[342856962,1732186238413,-8414.32613939,0.00037346,15]
[342856963,1732186238423,-599.17,0.00037351,2]
[342856964,1732186238434,-599.17,0.0003736,2]
[342856965,1732186238444,-1000.0,0.00037365,2]
[342856966,1732186238454,-599.17,0.0003737,2]
[342856967,1732186238464,-599.17,0.0003738,2]
[342856968,1732186238474,-599.17,0.0003739,2]
[342856969,1732186238483,-2469.0,0.00037397,120]
[342856970,1732186238493,-599.17,0.000374,2]
[342856971,1732186238502,-599.17,0.0003741,2]
[342856972,1732186238512,-810.35836061,0.0003741,15]
[342856973,1732186238524,-16961.47492516,0.0003741,15]
[342856974,1732186238688,-466.28902935,0.0003741,15]
[342856975,1732186238701,-2168.18070228,0.0003741,15]
[342856976,1732186238713,-2682.394968,0.0003741,15]
[342856977,1732186238740,-526.0,0.0003741,15]
[342856978,1732186238754,-4571.63,0.0003741,15]
[342856979,1732186238923,-46.5382187,0.0003741,15]
[342856980,1732186238944,-733.99255442,0.0003741,15]
[342856985,1732186239717,-198.04,0.00034885,3]
[342856986,1732186239727,-396.08,0.00036255,3]
[342856987,1732186239736,-17878.79542096,0.0003741,15]
[342856988,1732186239747,-3593.73029228,0.0003741,15]
[342856989,1732186239758,-796.83631106,0.0003741,15]
[342856990,1732186239769,-335.0,0.0003741,15]
[342856991,1732186239780,-571.01985907,0.0003741,15]
[342856992,1732186239844,-1685.50883807,0.0003741,15]
[342856993,1732186239861,-9993.37158508,0.0003741,15]
[342856994,1732186239872,-599.17,0.00037419,2]
[342856995,1732186239882,-599.17,0.00037429,2]
[342856996,1732186239892,-599.17,0.00037439,2]
[342856997,1732186239902,-599.17,0.00037449,2]
[342856998,1732186239912,-599.17,0.00037459,2]
[342856999,1732186239922,-155.58,0.0003746,2]
[342857000,1732186239933,-599.17,0.00037468,2]
[342857001,1732186239942,-599.17,0.00037478,2]
[342857002,1732186239951,-599.17,0.00037488,2]
[342857003,1732186239960,-599.17,0.00037498,2]
[342857004,1732186239971,-118.38418487,0.00037539,2]
[342857010,1732186242693,-344.10978337,0.0003735,120]
[342857013,1732186242705,-343.03021663,0.0003735,120]
[342857014,1732186242714,-48.27581513,0.00037539,2]
[342857016,1732186242723,-214.5554155,0.000376,15]
[342857028,1732186243528,-785.4445845,0.000376,15]
[342857029,1732186243675,-1148.5352238,0.00037673,11]
[342857030,1732186243703,-1043.8817062,0.00037673,11]
[342857031,1732186243713,-1500.0,0.00037897,10]
[342857032,1732186243722,-200.0,0.00038,120]
[342857033,1732186243732,-107.77611173,0.00038,120]
[342857034,1732186243755,-1250.19228783,0.00038,120]
[342857035,1732186243764,-337.17317156,0.00038,120]
[342857036,1732186243774,-3201.20329878,0.00038,60]
[342857037,1732186243785,-269.54733392,0.00038,60]
[342857038,1732186243825,-973.67188913,0.00038,60]
[342857039,1732186243880,-2385.60901438,0.00038,60]
[342857042,1732186245654,-8953.41635368,0.00038,60]
[342857044,1732186245761,-6547.34426409,0.00038,60]
[342857045,1732186245773,-2649.627632,0.00038,60]
[342857046,1732186245869,-2.03389076,0.00038,60]
[342857053,1732186651216,150.0,0.0001,2]
[342857054,1732186651253,1855.9339086,0.0001,2]
[342857055,1732186786451,2200.0,0.000235,90]
[342857056,1732186819241,1000.0,0.00023,120]
[342857057,1732186856795,1580.16,0.00022,30]
[342857059,1732187142161,-267.09981739,0.00015242,2]
[342857060,1732187142181,-500.0,0.00015342,2]
[342857061,1732187142204,-80.06714794,0.00015342,2]
[342857066,1732187228138,-419.93285206,0.00015342,2]
[342857067,1732187228161,-156.85,0.00015342,2]
[342857068,1732187228183,-156.29,0.00015342,2]
[342857069,1732187228204,-337.30736934,0.00015342,2]
[342857070,1732187228225,-150.0,0.00016862,2]